{"text_format":"1","workbook":"xlsx","n_sheets":3,"sheets":["入力フォーム","コンクール申込書","マクロ（印刷プログラム等）が動かない場合はこちら"],"not_rendered":{"charts":0,"images":2,"macros":1,"external_links":0,"defined_names":33,"comments":0,"pivot_tables":0},"unopened":[],"bounds":{"document_bytes":16777216,"sheet_cells":100000,"rows_first":2000,"rows_last":500,"rows_between":2000,"halvings":0,"cell_chars":16384,"cell_head_chars":4096},"cells_cut":0,"cells_raw":0,"read":"whole","date_system":"1900"}

{"sheet":"入力フォーム","index":0,"n_rows":40,"n_cols":17,"rows_kept":40,"cut":false,"hidden":false,"merged":[[33,2,33,13],[33,14,33,15],[28,2,28,3],[27,4,27,10],[28,4,28,10],[31,2,31,3],[32,2,32,3],[27,2,27,3],[29,11,30,19],[27,11,27,19],[29,9,29,10],[28,11,28,19],[26,2,26,3],[20,2,20,3],[24,2,24,3],[22,4,22,10],[23,11,23,19],[26,7,26,13],[22,1,30,1],[17,1,19,1],[17,2,17,3],[19,2,19,3],[19,4,19,6],[17,4,17,9],[18,4,18,9],[29,2,29,3],[30,2,30,3],[29,4,29,6],[23,4,23,10],[24,4,24,10],[30,4,30,10],[18,2,18,3],[18,10,18,15],[29,7,29,8],[1,16,1,19],[1,1,1,11],[11,2,11,3],[12,2,12,3],[9,1,12,1],[10,4,10,10],[4,2,4,3],[9,2,9,3],[10,2,10,3],[5,2,5,4],[8,2,8,4],[7,2,7,8],[6,2,6,8],[4,13,5,19],[5,6,5,12],[6,10,6,13],[13,2,13,5],[14,2,14,5],[25,2,25,3],[16,2,16,3],[25,4,25,10],[22,2,22,3],[15,7,15,16],[13,6,13,13],[14,6,14,13],[22,11,22,19],[17,10,17,15],[25,11,25,19],[24,11,24,19],[21,2,21,10],[23,2,23,3],[20,4,20,11]]}
[]
[null,"第６５回山形県吹奏楽コンクール申込書入力シート",null,null,null,null,null,null,null,null,null,null,null,null,null,null,"〇必要事項を記入したら、左の「申込書印刷」ボタンを押してください。"]
[null,"※色のついている枠にご記入ください"]
[null,null,null,null,null,null,null,null,null,null,null,null,null,"〇合同で出場する団体について"]
[null,"地区",null,null,null,null,null,null,null,null,null,null,null,"・合同で出場する団体は、登録団体名を併記してください。\n（例）○○市立第一中学校・○○市立第二中学校　\n  ※この記載順が、賞状や各種印刷物の表示になります。\n・団体コードや連絡先、代表者は代表校に一本化してください。"]
[null,"出場部門",null,null,null,null,"※小学生の部：６５名以内、小バンフェスステージ部門予選\n※小学生小編成の部：３０名以内、東日本吹奏楽大会予選\n※出場部門の詳細は「山形県吹奏楽コンクール実施規定」を\n　ご確認ください。こちらをクリック↓↓↓↓↓↓↓"]
[null,"ふりがな",null,null,null,null,null,null,null,null,"山形県吹奏楽コンクール実施規定のページ\n（外部リンク）"]
[null,"団体名"]
[null,"団体コード",null,null,null,"※団体コードは、総会時に配布された加盟団体名簿に記載されている、「40」から始まる各団体固有の6桁の数字です。"]
[null,"連絡先\n（学校住所）","郵便番号",null,null,"-"]
[null,null,"住所"]
[null,null,"電話番号",null,null,"-",null,"-"]
[null,null,"FAX番号",null,null,"-",null,"-"]
[null,"代表者\n（校長）",null,null,null,null,"※大学、職場・一般団体は団体代表者（団長等）を記入してください。\n※姓名の間を全角スペースで１字空けてください。"]
[null,"連絡責任者\n（部顧問）",null,null,null,null,"※大学、職場・一般団体は団体代表者（団長等）を記入してください。\n※姓名の間を全角スペースで１字空けてください。"]
[null,"携帯番号",null,"-",null,"-",null,"※確実に通じる携帯番号を記入ください。"]
[null,"参加人数"]
[null,"指揮者","ふりがな",null,null,null,null,null,null,null,"※姓名の間を１字空けてください。"]
[null,null,"氏名",null,null,null,null,null,null,null,"※姓名の間を１字空けてください。"]
[null,null,"身分"]
[null,"課題曲",null,null,"※小学生、小編成の団体は「なし」と記入してください。"]
[null,"課題曲名",{"$f":"IFERROR(VLOOKUP($C$21,$B$36:$C$40,2,FALSE),\"\")","v":""}]
[null,"自由曲","自由曲\n（邦題名）",null,null,null,null,null,null,null,null,"※組曲の抜粋部分や交響曲の楽章等は､全部必ず明記してください｡→ ･･より“ \"“ \"　\n（例）バレエ組曲「青銅の騎士」より　1.広場での踊り　3.踊りの場面　8.偉大なる都市への賛歌"]
[null,null,"自由曲\n（英字表記）",null,null,null,null,null,null,null,null,"※半角入力をしてください。\n　英字表記は著作権申請時必要となります。必ずご記入ください。"]
[null,null,"作曲者",null,null,null,null,null,null,null,null,"※外国人名はﾌｧｰｽﾄ･ﾈｰﾑの頭文字だけアルファベットで､あとはカタカナで書いてください｡\n（例）S.ラフマニノフ　J.B.チャンス　R.W.スミス"]
[null,null,"作曲者\n（英字）",null,null,null,null,null,null,null,null,"※半角入力をしてください。邦人名はFukushima Hirokazuなど、姓→名の順で記入してください。\n　英字表記は著作権申請時必要となります。必ずご記入ください。"]
[null,null,"作曲者生没年",null,null,"-",null,"※必ず記入してください。"]
[null,null,"編曲者",null,null,null,null,null,null,null,null,"※外国人名はﾌｧｰｽﾄ･ﾈｰﾑの頭文字だけアルファベットで､あとはカタカナで書いてください｡\n（例）S.ラフマニノフ　J.B.チャンス　R.W.スミス"]
[null,null,"編曲者\n（英字）",null,null,null,null,null,null,null,null,"※半角入力をしてください。邦人名はFukushima Hirokazuなど、姓→名の順で記入してください。\n　英字表記は著作権申請時必要となります。必ずご記入ください。"]
[null,null,"楽譜出版社",null,null,null,null,"演奏許諾",null,null,null,"※国内出版社はブレーン、ウィンズスコア、カフア、全音など日本語で\n　海外出版社はde haske、C.Alanなど英字で記入してください。\n※未出版の楽譜を使用する場合は、許諾先を記入してください。"]
[null,null,"許諾先"]
[null,"ピアノ使用"]
[null,"電源使用"]
[null,"承諾書","第６５回山形県吹奏楽コンクールにおける当団体の演奏については、山形県吹奏楽連盟の指定する各社によるＣＤ録音、写真撮影、ビデオ収録されることを"]
[]
[null,"Ⅰ","夕映えの丘"]
[null,"Ⅱ","ザ・ガーズ"]
[null,"Ⅲ","あつまれ　おもちゃのマルチャ！"]
[null,"Ⅳ","管楽器のためのフィナーレ"]
[null,"なし","　"]

{"sheet":"コンクール申込書","index":1,"n_rows":42,"n_cols":27,"rows_kept":42,"cut":false,"hidden":false,"merged":[[39,23,39,27],[39,2,39,21],[20,1,37,1],[38,11,38,13],[7,15,7,16],[37,6,37,11],[35,6,35,11],[18,5,18,6],[19,11,19,27],[30,3,30,26],[24,3,24,27],[19,2,19,7],[25,2,25,4],[26,2,26,5],[29,2,29,5],[26,6,26,18],[29,6,29,18],[13,4,13,9],[1,1,1,27],[2,1,2,26],[16,1,18,1],[19,8,19,10],[4,1,6,1],[10,1,12,1],[13,1,14,1],[7,1,9,1],[13,17,13,18],[7,22,7,23],[7,17,7,18],[13,22,13,24],[6,2,6,14],[8,4,8,27],[11,3,11,14],[15,21,15,24],[4,15,5,19],[4,20,5,27],[6,15,6,19],[6,20,6,27],[4,6,4,14],[5,2,5,14],[28,6,28,18],[17,5,17,17],[21,4,21,27],[23,4,23,27],[25,19,25,20],[25,23,25,24],[25,6,25,16]]}
[]
[null," 第６５回 山 形 県 吹 奏 楽 コ ン ク ー ル "]
[null,"　参　加　申　込　書（地区大会・県大会共通）"]
[]
[null,"団体名\n（学校名）","※読み方も記入下さい",null,null,null,null,null,null,null,null,null,null,null,null,"団体所属地区",null,null,null,null,{"$f":"入力フォーム!C5","v":0}]
[null,null,{"$f":"入力フォーム!C7","v":0}]
[null,null,{"$f":"入力フォーム!C8","v":0},null,null,null,null,null,null,null,null,null,null,null,null,"団体コード",null,null,null,null,{"$f":"入力フォーム!C9","v":0}]
[null,"連絡先\n（学校住所）",null,"（〒",{"$f":"入力フォーム!E10","v":0},"-",{"$f":"入力フォーム!G10","v":0},")","（℡",{"$f":"入力フォーム!E12","v":0},"-",{"$f":"入力フォーム!G12","v":0},"-",{"$f":"入力フォーム!I12","v":0},")","（Fax",null,{"$f":"入力フォーム!E13","v":0},null,"-",{"$f":"入力フォーム!G13","v":0},"-",{"$f":"入力フォーム!I13","v":0},null,null,")"]
[null,null,"住所",null,{"$f":"入力フォーム!E11","v":0}]
[null,null,null,null,null,null,null,null,null,"※大学、職場・一般団体については「連絡責任者」の連絡先を記入。"]
[null,"代表者\n（校長）"]
[null,null,null,{"$f":"入力フォーム!C14","v":0},null,null,null,null,null,null,null,null,null,null,null,null,null,null,"印"]
[null,null,null,null,null,null,null,null,null,null,null,"※大学、職場・一般団体は団体代表者（団長等）を記入。"]
[null,"連絡責任者","氏名",null,{"$f":"入力フォーム!C15","v":0},null,null,null,null,null,null,null,null,null,null,null,"(確実に通じるTel",{"$f":"入力フォーム!C16","v":0},null,"-",{"$f":"入力フォーム!E16","v":0},"-",{"$f":"入力フォーム!G16","v":0},null,null,")","携帯のみ"]
[null,null,null,null,null,null,null,null,null,null,null,null,null,"※大学、職場・一般団体は連絡の責任者を記入。"]
[null,"部門・順",null,{"$f":"入力フォーム!C6","v":0},null,null,null,null,null,"の部",null,null,null,"番",null,"※１",null,null,"参加人数",null,null,{"$f":"入力フォーム!C17","v":0},null,null,null,null,"名"]
[null,"指揮者","ふりがな",null,null,{"$f":"入力フォーム!E18","v":0}]
[null,null,"氏　名",null,null,{"$f":"入力フォーム!$E$19","v":0}]
[null,null,null,null,null,"身　分",null,"（",null,{"$f":"IF(入力フォーム!$E$20=\"顧問\",\"顧問\",IF(入力フォーム!$E$20=\"常任の指導者\",\"常任の指導者\",IF(入力フォーム!$E$20=\"その他\",\"その他\",\"\")))","v":""},null,null,null,null,")"]
[null,"課題曲番号",{"$f":"入力フォーム!C21","v":0},null,null,null,null,null,"課題曲名",null,null,{"$f":"入力フォーム!C22","v":""}]
[null,"自由曲\n\n※２","自由曲（邦題名）"]
[null,null,null,null,{"$f":"入力フォーム!E23","v":0}]
[null,null,"自由曲（英字表記）"]
[null,null,null,null,{"$f":"入力フォーム!E24","v":0}]
[null,null,null,"※組曲の抜粋部分や交響曲の楽章等は､全部必ず明記してください｡→ ･･より“ \"“ \"　　　　　　　　　　　　　　　　　　　　　　　　　　　　　　　　　　　　　　　　　　　　　　　　　　　　　　"]
[null,null,"作曲者",null,null,null,{"$f":"入力フォーム!$E$25","v":0},null,null,null,null,null,null,null,null,null,null,null,"(生",{"$f":"入力フォーム!$E$27","v":0},null,"-",null,{"$f":"入力フォーム!$G$27","v":0},null,"没)"]
[null,null,"作曲者（英字）",null,null,null,{"$f":"入力フォーム!$E$26","v":0}]
[]
[null,null,"編曲者",null,null,null,{"$f":"入力フォーム!$E$28","v":0}]
[null,null,"編曲者（英字）",null,null,null,{"$f":"入力フォーム!$E$29","v":0}]
[null,null,null,"※外国人名はﾌｧｰｽﾄ･ﾈｰﾑの頭文字だけｱﾙﾌｧﾍﾞｯﾄで､あとはｶﾀｶﾅで書いてください｡　　　　　　　　　　　　　　　　　　　　　　　　　　　　　　"]
[null,null,null,"※Spellingは著作権申請時必要となります。必ずご記入ください。"]
[]
[null,null,"◎著作権について、以下のように演奏許諾が得られている。"]
[null,null,{"$f":"IF(入力フォーム!J30=\"出版・レンタルされている楽譜\",\"〇出版されている楽譜(貸譜又は編曲楽譜)で､演奏許諾が得られている。\",\"\")","v":""}]
[null,null,null,{"$f":"IF(入力フォーム!J30=\"出版・レンタルされている楽譜\",\"出版社\",\"\")","v":""},null,{"$f":"IF(入力フォーム!J30=\"出版・レンタルされている楽譜\",\"【\",\"\")","v":""},{"$f":"IF(入力フォーム!J30=\"出版・レンタルされている楽譜\",入力フォーム!$E$30,\"\")","v":""},null,null,null,null,null,{"$f":"IF(入力フォーム!J30=\"出版・レンタルされている楽譜\",\"】\",\"\")","v":""}]
[null,null,{"$f":"IF(入力フォーム!J30=\"未出版楽譜\",\"〇作曲・編曲楽譜が未出版であるが、演奏許諾を得ている。\",\"\")","v":""}]
[null,null,null,{"$f":"IF(入力フォーム!J30=\"未出版楽譜\",\"許諾先\",\"\")","v":""},null,{"$f":"IF(入力フォーム!J30=\"未出版楽譜\",\"【\",\"\")","v":""},{"$f":"IF(入力フォーム!J30=\"未出版楽譜\",入力フォーム!E31,\"\")","v":""},null,null,null,null,null,{"$f":"IF(入力フォーム!J30=\"未出版楽譜\",\"】\",\"\")","v":""},{"$f":"IF(入力フォーム!J30=\"未出版楽譜\",\"※許諾書のコピーを同封してください｡\",\"\")","v":""}]
[null,"ピアノ使用",null,null,{"$f":"IF(入力フォーム!$C$32=\"あり\",\"あり\",\"\")","v":""},null,null,null,{"$f":"IF(入力フォーム!$C$32=\"なし\",\"なし\",\"\")","v":""},null,null,"電源使用",null,null,null,null,{"$f":"IF(入力フォーム!$C$33=\"あり\",\"あり\",\"\")","v":""},null,null,null,null,null,null,null,{"$f":"IF(入力フォーム!$C$33=\"なし\",\"なし\",\"\")","v":""}]
[null,"承諾書","第６５回山形県吹奏楽コンクールにおける当団体の演奏については、山形県吹奏楽連盟の指定する各社によるＣＤ録音、写真撮影、ビデオ収録されることを",null,null,null,null,null,null,null,null,null,null,null,null,null,null,null,null,null,null,null,null,{"$f":"入力フォーム!O34","v":0}]
[null,"※１  上位大会へは地区大会の申込人数を超えることができません。"]
[null,"※２  自由曲については、Spellingや作曲者の生没年や出版社まで必ず明記してください。"]

{"sheet":"マクロ（印刷プログラム等）が動かない場合はこちら","index":2,"n_rows":0,"n_cols":0,"rows_kept":0,"cut":false,"hidden":false,"merged":[]}